bitfinex/quotes_SOLUSD_20240906
["timestamp","ask_amount","ask_price","bid_price","bid_amount"]
[1725639949660,38.49269968,128.43,128.36,20.0]
[1725639950077,23.1829,128.46,128.36,20.0]
[1725639950078,38.98933843,128.45,128.36,20.0]
[1725639950782,38.49269968,128.43,128.36,20.0]
[1725639951279,83.06809669,128.44,128.36,20.0]
[1725639952362,83.06809669,128.44,128.36,25.46819716]
[1725639952562,45.0,128.44,128.36,25.46819716]
[1725639952855,38.72836731,128.47,128.37,35.04953479]
[1725639953069,58.05559002,128.46,128.39,6.1328]
[1725639953270,38.92330422,128.49,128.39,41.18233479]
[1725639953468,53.34224465,128.5,128.4,20.0]
[1725639953982,38.27814465,128.5,128.41,15.5797]
[1725639954465,38.27814465,128.5,128.42,20.0]
[1725639954664,41.15671819,128.5,128.42,20.0]
[1725639955064,38.27814465,128.5,128.42,20.0]
[1725639956583,45.0,128.49,128.42,20.0]
[1725639956884,38.27814465,128.5,128.43,35.04953479]
[1725639957184,38.27814465,128.5,128.44,20.0]
[1725639958086,38.27814465,128.5,128.45,6.2567]
[1725639958283,38.27814465,128.5,128.46,20.0]
[1725639961176,38.27814465,128.5,128.46,2.78e-06]
[1725639961381,38.27814465,128.5,128.45,6.2567]
[1725639962789,38.27814465,128.5,128.46,2.25e-06]
[1725639963300,38.27814465,128.5,128.47,35.04953479]
[1725639963483,38.27814465,128.5,128.47,2.54e-06]
[1725639964786,38.27814465,128.5,128.46,20.00000225]
[1725639965173,0.8373814,128.51,128.49,35.04953479]
[1725639965376,0.8373814,128.51,128.47,86.82871614]
[1725639965377,39.05496019,128.51,128.47,51.77918135]
[1725639965687,39.05496019,128.51,128.49,2.29e-06]
[1725639966074,0.8373814,128.51,128.49,2.29e-06]
[1725639966285,8.14e-05,128.51,128.5,35.04953479]
[1725639967071,8.14e-05,128.51,128.5,85.04953479]
[1725639967271,38.726296,128.62,128.5,81.82830077]
[1725639967500,38.726296,128.62,128.52,35.04953479]
[1725639968777,38.726296,128.62,128.53,45.0]
[1725639968986,38.726296,128.62,128.52,35.04953479]
[1725639969715,44.899975,128.59,128.5,1.77876598]
[1725639969893,38.61020434,128.57,128.47,5.5978]
[1725639970092,38.41800009,128.55,128.47,5.5978]
[1725639970408,45.0,128.54,128.47,5.5978]
[1725639970607,83.44861877,128.54,128.46,2.25e-06]
[1725639970813,15.8992,128.52,128.46,2.25e-06]
[1725639970990,45.0,128.51,128.46,2.25e-06]
[1725639972589,45.0,128.51,128.35,290.54953479]
[1725639972590,20.0,128.5,128.35,290.54953479]
[1725639972916,20.0,128.5,128.34,1.67e-06]
[1725639972917,7.7851,128.45,128.34,1.67e-06]
[1725639973122,45.0,128.44,128.34,1.67e-06]
[1725639973911,37.48658872,128.43,128.34,1.67e-06]
[1725639974104,45.0,128.42,128.34,1.67e-06]
[1725639975290,45.0,128.42,128.34,20.00000167]
[1725639976016,45.0,128.42,128.34,63.78212845]
[1725639976893,45.0,128.42,128.34,1.67e-06]
[1725639977098,1.94665626,128.41,128.34,1.67e-06]
[1725639977516,45.0,128.42,128.34,1.67e-06]
[1725639977719,1.9469498,128.41,128.34,1.67e-06]
[1725639977902,6.4781,128.4,128.34,1.67e-06]
[1725639978110,65.0,128.39,128.34,1.67e-06]
[1725639978299,45.0,128.39,128.34,1.67e-06]
[1725639978923,88.82075448,128.39,128.34,1.67e-06]
[1725639979223,43.82075448,128.35,128.34,1.67e-06]
[1725639979420,43.82075448,128.35,128.32,1.1e-06]
[1725639979627,23.612,128.36,128.32,1.1e-06]
[1725639979628,45.0,128.34,128.32,1.1e-06]
[1725639979927,88.82075448,128.34,128.32,1.1e-06]
[1725639980422,45.0,128.34,128.32,1.1e-06]
[1725639980724,45.0,128.35,128.32,1.1e-06]
[1725639982522,15.821,128.36,128.32,1.1e-06]
[1725639983701,59.64175448,128.36,128.32,1.1e-06]
[1725639983900,45.0,128.35,128.32,1.1e-06]
[1725639984813,45.76882205,128.34,128.32,1.1e-06]
[1725639985126,45.0,128.33,128.32,1.1e-06]
[1725639985494,88.82075448,128.33,128.32,1.1e-06]
[1725639985999,45.0,128.33,128.32,1.1e-06]
[1725639987514,7.794,128.31,128.24,1.45e-06]
[1725639987716,43.82075448,128.31,128.24,1.45e-06]
[1725639987907,45.0,128.3,128.24,1.45e-06]
[1725639989114,45.0,128.31,128.24,1.45e-06]
[1725639989313,16.2447,128.29,128.24,1.45e-06]
[1725639989524,18.19372305,128.29,128.24,1.45e-06]
[1725639989701,45.0,128.28,128.24,1.45e-06]
[1725639990427,16.2447,128.29,128.24,1.45e-06]
[1725639991926,45.0,128.28,128.24,1.45e-06]
[1725639999552,35.11681396,128.26,128.24,1.45e-06]
[1725639999726,1.94953366,128.25,128.24,1.45e-06]
[1725640000052,64.86364762,128.25,128.19,0.8373814]
[1725640000225,51.25461396,128.22,128.19,0.8373814]
[1725640000842,45.0,128.21,128.19,0.8373814]
[1725640001220,45.0,128.21,128.19,8.6380814]
[1725640001420,45.0,128.21,128.19,0.8373814]
[1725640002245,45.0,128.21,128.2,7.8003]
[1725640002942,27.7977,128.25,128.19,0.8373814]
[1725640002943,36.5928,128.25,128.19,0.8373814]
[1725640003257,71.70961396,128.25,128.2,7.8]
[1725640003541,71.70961396,128.25,128.19,0.8373814]
[1725640003542,71.70961396,128.25,128.21,7.7995]
[1725640003848,71.70961396,128.25,128.19,0.8373814]
[1725640004137,71.70961396,128.25,128.23,7.7984]
[1725640004348,45.0,128.24,128.22,7.7987]
[1725640004715,45.0,128.24,128.19,0.8373814]
[1725640006954,35.11681396,128.21,128.19,0.8373814]
[1725640007158,46.95043017,128.2,128.19,0.8373814]
[1725640007753,45.0,128.2,128.19,0.8373814]
[1725640012863,45.0,128.2,128.19,8.6382814]
[1725640013083,45.0,128.2,128.19,0.8373814]
[1725640018043,86.7643,128.2,128.16,7.8026]
[1725640018348,7.8022,128.17,128.12,7.8049]
[1725640018547,37.06801511,128.16,128.12,7.8049]
[1725640018756,45.0,128.15,128.12,7.8049]
[1725640018957,1.95124962,128.14,128.12,7.8049]
[1725640019449,45.0,128.15,128.07,5.5978]
[1725640019450,45.0,128.15,128.14,7.8039]
[1725640019760,45.0,128.15,128.13,7.8041]
[1725640020743,45.0,128.15,128.07,40.71461396]
[1725640020967,45.0,128.15,128.14,7.8039]
[1725640024972,45.0,128.15,128.06,0.8373814]
[1725640025153,16.0185,128.14,128.13,7.8045]
[1725640025359,61.0185,128.14,128.12,7.8048]
[1725640025553,16.0185,128.14,128.12,7.8048]
[1725640025744,45.0,128.13,128.12,7.8048]
[1725640027246,16.0185,128.14,128.06,20.8373814]
[1725640027469,16.5793,128.17,128.07,35.11681396]
[1725640027651,16.5793,128.17,128.14,7.8037]
[1725640027849,51.69611396,128.17,128.14,7.8037]
[1725640028475,51.69611396,128.17,128.13,7.8043]
[1725640028855,45.0,128.16,128.13,7.8041]
[1725640029172,45.0,128.16,128.14,7.8039]
[1725640029758,45.0,128.16,128.13,7.8043]
[1725640030972,51.69611396,128.17,128.06,20.8373814]
[1725640031171,16.5793,128.17,128.08,35.11681396]
[1725640032371,45.0,128.16,128.15,7.8033]
[1725640033106,45.0,128.16,128.08,35.11681396]
[1725640033264,45.0,128.16,128.07,35.11681396]
[1725640034559,16.5793,128.17,128.16,7.8027]
[1725640035181,16.5793,128.17,128.15,7.8031]
[1725640035882,16.5793,128.17,128.16,7.8027]
[1725640036085,61.5793,128.17,128.16,7.8027]
[1725640037766,61.5793,128.17,128.15,7.8032]
[1725640037967,45.0,128.16,128.15,7.8032]
[1725640038473,45.0,128.16,128.14,7.8038]
[1725640038988,45.0,128.16,128.15,7.8033]
[1725640039483,7.8033,128.15,128.11,7.8055]
[1725640039663,86.20741396,128.14,128.06,0.8373814]
[1725640039867,86.20741396,128.14,128.11,7.8054]
[1725640040178,51.0906,128.14,128.13,7.8045]
[1725640040496,45.0,128.14,128.13,7.8045]
[1725640042569,45.0,128.14,128.12,7.8049]
[1725640042784,45.0,128.15,128.12,7.8049]
[1725640043100,45.0,128.15,128.07,23.45]
[1725640043387,45.0,128.16,128.14,7.8039]
[1725640043891,22.9398,128.17,128.08,35.11681396]
[1725640044095,22.9398,128.17,128.15,7.8033]
[1725640046091,22.9398,128.17,128.16,7.8027]
[1725640046694,67.9398,128.17,128.16,7.8027]
[1725640047079,67.9398,128.17,128.15,7.8031]
[1725640047277,45.0,128.16,128.15,7.8031]
[1725640047876,45.0,128.16,128.14,7.8035]
[1725640048598,7.8037,128.15,128.11,7.8054]
[1725640048896,45.0,128.14,128.12,7.805]
[1725640049279,45.0,128.15,128.13,7.8042]
[1725640049602,30.7421,128.17,128.07,5.48120797]
[1725640049603,52.8028,128.16,128.12,7.8047]
[1725640049777,7.8034,128.15,128.11,7.8055]
[1725640049968,45.0,128.14,128.12,7.8048]
[1725640050181,52.8028,128.16,128.12,7.8048]
[1725640050675,52.8028,128.16,128.13,7.8044]
[1725640050676,45.0,128.16,128.13,7.8044]
[1725640052198,7.8033,128.15,128.11,7.8053]
[1725640052396,45.0,128.14,128.12,7.8051]
[1725640052971,45.0,128.14,128.11,7.8055]
[1725640053198,45.0,128.14,128.06,0.8373814]
[1725640053501,42.92201396,128.12,128.08,7.8071]
[1725640053673,45.0,128.11,128.09,7.807]
[1725640054006,45.0,128.11,128.06,0.8373814]
[1725640054007,45.0,128.11,128.08,7.8073]
[1725640054375,45.0,128.11,128.09,7.8069]
[1725640055201,45.0,128.11,128.1,7.8064]
[1725640059697,45.0,128.11,128.06,0.8373814]
[1725640059698,45.0,128.11,128.09,7.8068]
[1725640059872,15.702,128.11,128.09,7.8068]
[1725640060075,45.0,128.1,128.09,7.8068]
[1725640060688,46.9516281,128.1,128.07,7.8076]
[1725640060881,46.9516281,128.1,128.07,7.8082]
[1725640061078,45.0,128.1,128.07,7.8082]
[1725640061900,7.8076,128.08,128.06,0.8373814]
[1725640062102,45.0,128.07,128.06,0.8373814]
[1725640062600,45.0,128.07,127.99,35.11681396]
[1725640062601,45.0,128.07,128.05,7.8091]
[1725640062800,45.0,128.08,128.05,7.8091]
[1725640063885,22.153,128.11,128.05,35.11681396]
[1725640064403,22.153,128.11,128.09,7.8068]
[1725640065209,15.702,128.11,128.1,7.8064]
[1725640065910,15.702,128.11,128.03,35.11681396]
[1725640066118,6.2846,128.1,127.99,35.11681396]
[1725640066409,7.808,128.08,128.04,7.8099]
[1725640066707,45.0,128.07,128.04,7.8099]
[1725640067085,54.76084442,128.07,128.03,7.8104]
[1725640067281,15.9573,128.06,128.03,7.8104]
[1725640067513,46.95263578,128.05,128.03,7.8104]
[1725640067911,45.0,128.05,128.03,7.8104]
[1725640068207,45.0,128.05,128.04,7.81]
[1725640068579,13.8224,128.04,127.99,7.8125]
[1725640068780,13.8224,128.04,128.01,7.8117]
[1725640068781,45.0,128.03,128.01,7.8117]
[1725640070387,45.0,128.03,128.0,7.8123]
[1725640070388,46.95301583,128.03,128.0,7.8123]
[1725640070584,46.95301583,128.03,127.98,7.8135]
[1725640070585,54.76371583,128.03,127.98,7.8135]
[1725640070784,52.8107,128.03,127.98,7.8135]
[1725640071015,45.0,128.03,127.99,7.8127]
[1725640072005,15.4728,128.02,127.94,0.8373814]
[1725640072207,6.1624,128.0,127.96,7.8145]
[1725640072410,1.95371111,127.99,127.96,7.8145]
[1725640072614,46.95371111,127.99,127.96,7.8145]
[1725640072814,1.95371637,127.98,127.96,7.8145]
[1725640072992,45.0,127.98,127.97,7.8143]
[1725640074739,45.0,127.98,127.96,7.8147]
[1725640075008,45.0,127.99,127.96,7.8147]
[1725640075210,45.0,127.99,127.97,7.8139]
[1725640075518,45.0,127.99,127.94,0.8373814]
[1725640076316,45.0,127.99,127.98,7.8137]
[1725640078138,45.0,127.99,127.94,35.95419536]
[1725640078139,15.4728,128.02,128.01,7.8118]
[1725640078310,6.0361,128.04,127.96,35.11681396]
[1725640079401,6.0361,128.04,128.03,7.8106]
[1725640080208,7.98871397,128.04,128.03,7.8106]
[1725640080387,6.0361,128.04,128.03,7.8106]
[1725640081399,16.5833,128.05,127.98,35.11681396]
[1725640081606,16.5833,128.05,128.04,7.81]
[1725640082418,16.5833,128.05,127.98,35.11681396]
[1725640082724,1.95284415,128.04,127.94,35.95419536]
[1725640082901,14.3968,128.03,127.94,35.95419536]
[1725640083224,15.4422,128.01,127.97,7.8141]
[1725640083517,45.0,128.0,127.98,7.8136]
[1725640084115,45.0,128.0,127.99,7.8131]
[1725640084917,45.0,128.0,127.98,7.8131]
[1725640085507,45.0,128.0,127.94,0.8373814]
[1725640085508,1.95354258,127.99,127.94,0.8373814]
[1725640085711,45.0,128.0,127.94,0.8373814]
[1725640086398,45.0,128.0,127.96,7.8147]
[1725640087295,45.0,128.0,127.97,7.8142]
[1725640088100,52.8126,128.0,127.96,7.8147]
[1725640088816,45.0,128.0,127.96,7.8147]
[1725640089020,6.394,127.99,127.94,0.8373814]
[1725640089222,45.0,127.98,127.94,0.8373814]
[1725640089402,45.0,127.98,127.95,7.8151]
[1725640090326,46.953914,127.98,127.95,7.8151]
[1725640090506,46.953914,127.98,127.94,8.6533814]
[1725640090703,15.925,127.97,127.94,8.6533814]
[1725640090904,45.0,127.96,127.95,7.8155]
[1725640093898,45.0,127.96,127.94,0.8373814]
[1725640094101,9.76984283,127.95,127.9,7.8184]
[1725640094308,9.76984283,127.95,127.83,5.5978]
[1725640094309,103.26496255,127.94,127.89,7.8187]
[1725640094530,51.3607,127.94,127.91,7.8174]
[1725640094737,1.95459822,127.93,127.9,7.8184]
[1725640094900,51.3607,127.94,127.91,7.8179]
[1725640095724,51.3607,127.94,127.93,7.8167]
[1725640096223,15.925,127.97,127.95,7.8153]
[1725640096616,15.925,127.97,127.89,44.08796255]
[1725640096617,15.925,127.97,127.94,7.8159]
[1725640097002,23.7393,127.97,127.93,7.8166]
[1725640098026,45.0,127.96,127.87,44.08796255]
[1725640098429,45.0,127.96,127.94,7.8161]
[1725640098819,45.0,127.96,127.92,7.8171]
[1725640099312,45.0,127.96,127.93,7.8166]
[1725640099640,45.0,127.96,127.87,44.08796255]
[1725640099641,15.925,127.97,127.96,7.8149]
[1725640100922,60.925,127.97,127.96,7.8149]
[1725640103324,60.925,127.97,127.87,44.08796255]
[1725640103636,45.0,127.96,127.95,7.8151]
[1725640106042,15.925,127.97,127.96,7.8149]
[1725640108168,60.925,127.97,127.96,7.8149]
[1725640110347,60.925,127.97,127.89,40.870238]
[1725640110642,52.8149,127.96,127.92,7.8169]
[1725640110824,20.0,127.95,127.92,7.8171]
[1725640111022,45.0,127.94,127.92,7.8171]
[1725640112024,45.0,127.94,127.93,7.8167]
[1725640112451,15.925,127.97,127.96,7.8149]
[1725640112625,60.925,127.97,127.96,7.8149]
[1725640112826,15.925,127.97,127.96,7.8149]
[1725640114054,15.925,127.97,127.95,7.8154]
[1725640114351,45.0,127.96,127.93,7.8162]
[1725640115444,45.0,127.96,127.87,35.272438]
[1725640115853,45.0,127.96,127.95,7.8155]
[1725640116040,65.0,127.96,127.87,35.272438]
[1725640116544,65.0,127.96,127.94,7.816]
[1725640116752,65.0,127.96,127.87,35.272438]
[1725640116928,65.0,127.96,127.94,7.8156]
[1725640117130,65.0,127.96,127.95,7.8155]
[1725640117331,15.925,127.97,127.96,7.8149]
[1725640120560,6.1089,127.98,127.97,7.8143]
[1725640120764,45.0,127.98,127.97,7.8143]
[1725640122451,45.0,127.98,127.92,35.272438]
[1725640122667,45.0,127.99,127.92,35.272438]
[1725640123209,45.0,127.99,127.97,7.8142]
[1725640123482,45.0,127.99,127.91,5.5978]
[1725640123483,45.0,127.99,127.96,7.8147]
[1725640123971,1.95372509,127.98,127.95,7.8154]
[1725640124183,45.0,127.99,127.97,7.8143]
[1725640125762,45.0,127.99,127.98,7.8137]
[1725640125970,65.0,127.99,127.98,7.8137]
[1725640130178,66.9534851,127.99,127.97,7.8141]
[1725640130373,65.0,127.99,127.91,35.272438]
[1725640130562,65.0,127.99,127.96,7.8149]
[1725640131382,65.0,127.99,127.89,35.272438]
[1725640131560,20.0,127.98,127.95,7.8154]
[1725640131877,45.0,127.97,127.96,7.8149]
[1725640133977,45.0,127.97,127.95,7.815]
[1725640134569,45.0,127.97,127.96,7.8149]
[1725640136663,45.0,127.97,127.87,40.870238]
[1725640136867,52.8144,127.97,127.93,7.8164]
[1725640137065,52.8144,127.97,127.87,40.870238]
[1725640137469,7.8149,127.96,127.93,7.8164]
[1725640137685,52.8145,127.97,127.93,7.8164]
[1725640137873,20.0,127.96,127.93,7.8164]
[1725640138070,45.0,127.95,127.94,7.8161]
[1725640140181,58.535838,128.0,127.96,7.8147]
[1725640140394,20.0,127.99,127.96,7.8147]
[1725640140691,45.0,127.98,127.96,7.8147]
[1725640141184,45.0,127.98,127.97,7.8143]
[1725640141389,45.0,127.98,127.96,7.8147]
[1725640142996,45.0,127.98,127.89,35.272438]
[1725640143214,45.0,127.98,127.94,7.8157]
[1725640143215,20.0,127.97,127.94,7.8157]
[1725640143673,45.0,127.96,127.94,7.8157]
[1725640144194,45.0,127.96,127.92,7.8169]
[1725640144195,52.815,127.96,127.92,7.8169]
[1725640144401,52.815,127.96,127.87,40.870238]
[1725640144402,1.95438237,127.95,127.93,7.8167]
[1725640144784,51.3707,127.96,127.93,7.8167]
[1725640146282,51.3707,127.96,127.95,7.8155]
[1725640146673,45.0,127.96,127.95,7.8155]
[1725640147079,6.54549,127.99,127.96,7.8146]
[1725640147498,6.54549,127.99,127.97,7.8143]
[1725640149380,45.0,127.98,127.97,7.8143]
[1725640149781,45.0,127.98,127.96,7.8145]
[1725640151300,45.0,127.98,127.95,7.8153]
[1725640151806,82.22647026,127.98,127.93,7.8167]
[1725640152100,27.8147,127.97,127.93,7.8167]
[1725640152285,45.0,127.96,127.93,7.8167]
[1725640152607,1.95430194,127.95,127.93,7.8167]
[1725640152774,52.8149,127.96,127.93,7.8167]
[1725640153104,1.95442914,127.95,127.92,7.8171]
[1725640153299,52.8149,127.96,127.93,7.8167]
[1725640153801,45.0,127.96,127.92,7.8171]
[1725640153973,45.0,127.96,127.93,7.8163]
[1725640155086,45.0,127.96,127.94,7.816]
[1725640159589,45.0,127.96,127.95,7.8155]
[1725640159784,6.54549,127.99,127.91,35.272438]
[1725640160096,6.54549,127.99,127.97,7.8137]
[1725640160406,6.54549,127.99,127.91,35.272438]
[1725640160797,6.54549,127.99,127.96,7.8146]
[1725640161290,7.8147,127.97,127.92,7.8173]
[1725640161494,1.95430262,127.96,127.93,7.8167]
[1725640161710,1.95430262,127.96,127.87,40.870238]
[1725640161711,45.0,127.96,127.92,7.8173]
[1725640161906,15.2478,127.95,127.92,7.8173]
[1725640162085,45.0,127.94,127.92,7.8173]
[1725640162896,45.0,127.94,127.87,40.870238]
[1725640163116,1.95453625,127.93,127.87,40.870238]
[1725640163291,45.0,127.94,127.87,40.870238]
[1725640163911,45.0,127.94,127.92,7.8169]
[1725640164503,6.54549,127.99,127.98,7.8137]
[1725640166213,6.54549,127.99,127.96,7.8147]
[1725640166512,1.95380007,127.98,127.89,35.272438]
[1725640166822,20.0,127.98,127.9,30.0]
[1725640167113,45.0,127.97,127.9,30.0]
[1725640167693,45.0,127.97,127.95,7.8153]
[1725640168816,46.95401258,127.97,127.95,7.8153]
[1725640169118,45.0,127.97,127.95,7.8153]
[1725640171416,45.0,127.97,127.94,7.8159]
[1725640173690,45.0,127.97,127.9,30.0]
[1725640173919,20.0,127.96,127.92,7.8169]
[1725640174102,45.0,127.95,127.92,7.8169]
[1725640174518,1.95438035,127.94,127.83,5.5978]
[1725640174819,1.95468358,127.93,127.9,7.8181]
[1725640175116,45.0,127.93,127.92,7.8173]
[1725640176118,15.2445,127.95,127.93,7.8167]
[1725640176324,45.0,127.94,127.93,7.8167]
[1725640176504,15.2445,127.95,127.94,7.8161]
[1725640177912,60.2445,127.95,127.94,7.8161]
[1725640178725,60.2445,127.95,127.93,7.8166]
[1725640179021,45.0,127.94,127.93,7.8166]
[1725640179924,15.2445,127.95,127.94,7.8161]
[1725640180097,60.2445,127.95,127.94,7.8161]
[1725640180297,15.2445,127.95,127.94,7.8161]
[1725640180515,7.8139,127.98,127.96,7.8145]
[1725640180516,15.6589,127.98,127.96,7.8145]
[1725640181110,15.6589,127.98,127.91,35.272438]
[1725640181421,15.6589,127.98,127.95,7.8152]
[1725640181826,45.0,127.97,127.95,7.8152]
[1725640182308,45.0,127.97,127.96,7.8149]
[1725640187913,45.0,127.97,127.89,40.870238]
[1725640188235,45.0,127.97,127.94,7.8155]
[1725640188728,45.0,127.97,127.95,7.8154]
[1725640188916,45.0,127.97,127.94,7.8159]
[1725640189324,45.0,127.97,127.95,7.8155]
[1725640189928,52.8148,127.97,127.89,5.5978]
[1725640190135,52.8148,127.97,127.94,7.816]
[1725640190136,45.0,127.97,127.94,7.816]
[1725640191031,15.6589,127.98,127.9,35.272438]
[1725640191336,15.6589,127.98,127.89,5.5978]
[1725640191337,15.6589,127.98,127.97,7.8143]
[1725640192313,15.6589,127.98,127.9,35.272438]
[1725640192519,15.6589,127.98,127.89,5.5978]
[1725640192520,15.6589,127.98,127.97,7.8143]
[1725640192726,60.6589,127.98,127.97,7.8143]
[1725640193106,60.6589,127.98,127.92,35.272438]
[1725640193306,45.0,127.97,127.96,7.8149]
[1725640194517,15.6589,127.98,127.96,7.8149]
[1725640194728,15.6589,127.98,127.97,7.8143]
[1725640194938,60.6589,127.98,127.97,7.8143]
[1725640197139,60.6589,127.98,127.96,7.8147]
[1725640197337,15.6589,127.98,127.96,7.8147]
[1725640197540,15.6589,127.98,127.97,7.8143]
[1725640197721,60.6589,127.98,127.97,7.8143]
[1725640200847,60.6589,127.98,127.96,7.8147]
[1725640201045,60.6589,127.98,127.95,7.8153]
[1725640201352,45.0,127.97,127.94,7.8157]
[1725640201646,15.6589,127.98,127.97,7.8143]
[1725640201849,45.0,127.98,127.97,7.8143]
[1725640202148,0.19239,127.99,127.98,7.8137]
[1725640202448,35.464828,127.99,127.89,5.5978]
[1725640202632,7.8144,127.97,127.92,7.8172]
[1725640202826,23.0137,127.96,127.92,7.8172]
[1725640203036,15.1987,127.96,127.92,7.8172]
[1725640203427,45.0,127.95,127.92,7.8172]
[1725640204546,52.8155,127.95,127.91,7.8178]
[1725640204752,45.0,127.95,127.87,35.272438]
[1725640205242,45.0,127.95,127.92,7.8171]
[1725640205434,45.0,127.95,127.87,35.272438]
[1725640205646,54.77043691,127.95,127.91,7.8178]
[1725640205819,54.77043691,127.95,127.85,35.272438]
[1725640205820,7.8166,127.94,127.9,7.8185]
[1725640206020,45.0,127.93,127.9,7.8185]
[1725640206226,16.6246,127.91,127.82,5.5978]
[1725640206441,45.0,127.9,127.82,5.5978]
[1725640206657,45.0,127.9,127.88,7.8197]
[1725640207855,16.6246,127.91,127.85,35.272438]
[1725640208148,22.1782,127.96,127.92,7.8172]
[1725640208751,29.9932,127.96,127.83,10.0]
[1725640208935,37.22707289,127.95,127.84,35.272438]
[1725640209126,35.272438,127.93,127.82,35.272438]
[1725640209333,21.95535055,127.92,127.82,35.272438]
[1725640209831,45.0,127.91,127.82,35.272438]
[1725640210032,52.818,127.91,127.87,7.8199]
[1725640210442,52.818,127.91,127.88,7.8197]
[1725640210443,45.0,127.91,127.88,7.8197]
[1725640210635,45.0,127.91,127.87,7.8203]
[1725640211729,45.0,127.91,127.88,7.8194]
[1725640211930,52.8181,127.91,127.87,7.8203]
[1725640212130,54.77338827,127.91,127.87,7.8203]
[1725640212530,24.4021,127.9,127.86,7.821]
[1725640212729,88.5255935,127.89,127.81,0.8373814]
[1725640212936,7.8199,127.88,127.84,7.8221]
[1725640213143,46.95580394,127.87,127.84,7.8221]
[1725640213633,45.0,127.87,127.85,7.8215]
[1725640213943,18.53919513,127.9,127.84,35.272438]
[1725640213944,16.5834,127.9,127.84,35.272438]
[1725640214147,6.2977,127.92,127.86,35.272438]
[1725640214451,6.2977,127.92,127.89,7.8191]
[1725640214757,6.2977,127.92,127.9,7.8184]
[1725640214950,6.2977,127.92,127.89,7.8191]
[1725640215132,6.2977,127.92,127.81,0.8373814]
[1725640215335,7.8205,127.87,127.83,7.8226]
[1725640215655,7.8205,127.87,127.81,0.8373814]
[1725640216029,9.77635096,127.87,127.81,0.8373814]
[1725640216337,51.605538,127.89,127.84,7.8217]
[1725640216338,45.0,127.86,127.84,7.8217]
[1725640216851,45.0,127.87,127.84,7.8217]
[1725640217160,45.0,127.88,127.84,7.8217]
[1725640217751,45.0,127.88,127.83,7.8228]
[1725640217955,45.0,127.88,127.81,0.8373814]
[1725640217956,52.82,127.88,127.84,7.822]
[1725640218136,7.8205,127.87,127.83,7.8227]
[1725640218333,45.0,127.86,127.83,7.8227]
[1725640219165,1.95577267,127.85,127.82,7.8233]
[1725640219335,58.9427,127.86,127.82,7.8233]
[1725640219733,51.1217,127.86,127.83,7.8228]
[1725640220447,52.75300968,127.85,127.81,0.8373814]
[1725640220652,52.75300968,127.85,127.73,5.5978]
[1725640220653,7.8235,127.82,127.73,5.5978]
[1725640220847,46.95639455,127.81,127.73,5.5978]
[1725640221043,45.0,127.81,127.73,5.5978]
[1725640221259,45.0,127.81,127.77,7.8263]
[1725640221460,52.8236,127.82,127.77,7.8263]
[1725640221633,45.0,127.82,127.72,85.272438]
[1725640222036,45.0,127.82,127.79,7.8252]
[1725640222454,45.0,127.82,127.72,35.272438]
[1725640222970,6.6331,127.8,127.68,56.4351814]
[1725640223132,6.6331,127.8,127.76,7.827]
[1725640223133,16.1996,127.79,127.76,7.827]
[1725640223339,61.1996,127.79,127.77,7.8264]
[1725640223534,16.1996,127.79,127.78,7.8259]
[1725640223842,61.1996,127.79,127.77,7.8263]
[1725640224056,16.1996,127.79,127.78,7.8259]
[1725640224254,61.1996,127.79,127.78,7.8259]
[1725640224661,15.6177,127.82,127.75,35.272438]